fUSD/lending_fUSD_20250128
["ID","MTS","AMOUNT","RATE_DAILY","PERIOD"]
[350691346,1738062658706,-500.0,0.00019289,2]
[350691347,1738062658715,-506.88993707,0.00019289,2]
[350691348,1738062658724,-500.0,0.00019289,2]
[350691349,1738062658733,-646.29,0.00019289,2]
[350691350,1738062658742,-500.0,0.00019289,2]
[350691351,1738062658751,-500.0,0.00019289,2]
[350691352,1738062658762,-500.0,0.00019289,2]
[350691353,1738062658771,-500.0,0.00019289,2]
[350691354,1738062658780,-506.9010684,0.00019289,2]
[350691355,1738062658789,-500.0,0.00019289,2]
[350691356,1738062658798,-1411.75,0.00019289,2]
[350691357,1738062658807,-269.30949419,0.00019289,2]
[350691358,1738062658816,-528.37,0.00019289,2]
[350691359,1738062658826,-631.38,0.00019289,2]
[350691360,1738062658835,-500.0,0.00019289,2]
[350691361,1738062658843,-500.0,0.00019289,2]
[350691362,1738062658853,-500.0,0.00019289,2]
[350691363,1738062658863,-500.0,0.00019289,2]
[350691364,1738062658872,-1413.74,0.00019289,2]
[350691365,1738062658881,-500.0,0.00019289,2]
[350691366,1738062658890,-500.0,0.00019289,2]
[350691367,1738062658899,-500.0,0.00019289,2]
[350691368,1738062658908,-500.0,0.00019289,2]
[350691369,1738062658917,-500.0,0.00019289,2]
[350691370,1738062658926,-661.36,0.00019289,2]
[350691371,1738062658935,-500.0,0.00019289,2]
[350691372,1738062658944,-500.0,0.00019289,2]
[350691373,1738062658953,-500.0,0.00019289,2]
[350691374,1738062658963,-563.99,0.00019289,2]
[350691375,1738062658973,-500.0,0.00019289,2]
[350691376,1738062658982,-508.65260516,0.00019289,2]
[350691377,1738062658991,-632.86,0.00019289,2]
[350691378,1738062659000,-500.0,0.00019289,2]
[350691379,1738062659010,-500.0,0.00019289,2]
[350691380,1738062659020,-1270.9,0.00019289,2]
[350691381,1738062659029,-516.85,0.00019289,2]
[350691382,1738062659038,-500.0,0.00019289,2]
[350691383,1738062659047,-500.0,0.00019289,2]
[350691384,1738062659056,-818.18,0.00019289,2]
[350691385,1738062659065,-856.76,0.00019289,2]
[350691386,1738062659074,-500.0,0.00019289,2]
[350691387,1738062659083,-500.0,0.00019289,2]
[350691388,1738062659092,-500.0,0.00019289,2]
[350691389,1738062659101,-500.0,0.00019289,2]
[350691390,1738062659111,-500.0,0.00019289,2]
[350691391,1738062659120,-500.0,0.00019289,2]
[350691392,1738062659128,-500.0,0.00019289,2]
[350691393,1738062659137,-500.0,0.00019289,2]
[350691394,1738062659146,-773.26,0.00019289,2]
[350691395,1738062659155,-500.0,0.00019289,2]
[350691396,1738062659164,-154.72641936,0.00019289,2]
[350691397,1738062659173,-193.14217803,0.00019289,2]
[350691398,1738062659312,-500.0,0.00018786,2]
[350691399,1738062659321,-500.0,0.00018798,2]
[350691400,1738062659330,-306.85782197,0.00019289,2]
[350691401,1738062659340,-638.62,0.00019289,2]
[350691402,1738062659349,-982.92,0.00019289,2]
[350691403,1738062659361,-500.0,0.00019289,2]
[350691404,1738062659370,-500.0,0.00019289,2]
[350691405,1738062659379,-500.0,0.00019289,2]
[350691406,1738062659388,-500.0,0.00019289,2]
[350691407,1738062659398,-500.0,0.00019289,2]
[350691408,1738062659407,-714.89,0.00019289,2]
[350691409,1738062659416,-500.0,0.00019289,2]
[350691410,1738062659425,-372.29107596,0.00019289,2]
[350691411,1738062659437,-379.82892404,0.00019289,2]
[350691412,1738062659446,-500.0,0.00019289,2]
[350691413,1738062659455,-500.0,0.00019289,2]
[350691414,1738062659464,-500.0,0.00019289,2]
[350691415,1738062659473,-177.37107596,0.00019289,2]
[350691416,1738062659483,-310.8597906,0.00019289,2]
[350691417,1738062659494,-650.13,0.00019289,2]
[350691418,1738062659505,-10.73913344,0.00019289,2]
[350691419,1738062659515,-500.0,0.00019289,2]
[350691420,1738062659524,-500.0,0.00019289,2]
[350691421,1738062659533,-500.0,0.00019289,2]
[350691422,1738062659542,-189.42486238,0.00019289,2]
[350691423,1738062659557,-500.0,0.00018995,2]
[350691424,1738062659567,-738.46513762,0.00019289,2]
[350691425,1738062659576,-603.84,0.00019289,2]
[350691426,1738062659585,-500.0,0.00019289,2]
[350691427,1738062659596,-500.0,0.00019289,2]
[350691428,1738062659604,-586.91,0.00019289,2]
[350691429,1738062659613,-500.0,0.00019289,2]
[350691430,1738062659623,-568.56,0.00019289,2]
[350691431,1738062659632,-500.0,0.00019289,2]
[350691432,1738062659641,-585.69057377,0.00019289,2]
[350691433,1738062659650,-151.62602614,0.00019289,2]
[350691434,1738062659659,-500.0,0.00019289,2]
[350691435,1738062659668,-1085.42,0.00019289,2]
[350691436,1738062659678,-500.0,0.00019289,2]
[350691437,1738062659688,-689.44,0.00019289,2]
[350691438,1738062659697,-500.0,0.00019289,2]
[350691439,1738062659706,-500.0,0.00019289,2]
[350691440,1738062659715,-737.75,0.00019289,2]
[350691441,1738062659724,-1266.32,0.00019289,2]
[350691442,1738062659733,-717.92,0.00019289,2]
[350691443,1738062659742,-500.0,0.00019289,2]
[350691444,1738062659751,-1155.97,0.00019289,2]
[350691445,1738062659760,-500.0,0.00019289,2]
[350691446,1738062659769,-500.0,0.00019289,2]
[350691447,1738062659778,-784.78,0.00019289,2]
[350691448,1738062659787,-469.07380147,0.00019289,2]
[350691449,1738062659796,-500.0,0.00019289,2]
[350691450,1738062659805,-500.0,0.00019289,2]
[350691451,1738062659814,-505.67187519,0.00019289,2]
[350691452,1738062659823,-520.72,0.00019289,2]
[350691453,1738062659831,-500.0,0.00019289,2]
[350691454,1738062659840,-812.94,0.00019289,2]
[350691455,1738062659849,-500.0,0.00019289,2]
[350691456,1738062659858,-500.0,0.00019289,2]
[350691457,1738062659867,-500.0,0.00019289,2]
[350691458,1738062659876,-500.0,0.00019289,2]
[350691459,1738062659886,-508.41047092,0.00019289,2]
[350691460,1738062659895,-500.0,0.00019289,2]
[350691461,1738062659904,-805.55,0.00019289,2]
[350691462,1738062659913,-500.0,0.00019289,2]
[350691463,1738062659923,-529.56866876,0.00019289,2]
[350691464,1738062659931,-500.0,0.00019289,2]
[350691465,1738062659940,-500.0,0.00019289,2]
[350691466,1738062659949,-500.0,0.00019289,2]
[350691467,1738062659958,-500.0,0.00019289,2]
[350691468,1738062659967,-1710.17,0.00019289,2]
[350691469,1738062659976,-500.0,0.00019289,2]
[350691470,1738062659985,-500.0,0.00019289,2]
[350691471,1738062659994,-500.0,0.00019289,2]
[350691472,1738062660003,-1116.79,0.00019289,2]
[350691473,1738062660013,-500.0,0.00019289,2]
[350691474,1738062660022,-500.0,0.00019289,2]
[350691475,1738062660031,-528.62,0.00019289,2]
[350691476,1738062660040,-770.07,0.00019289,2]
[350691477,1738062660049,-516.99,0.00019289,2]
[350691478,1738062660058,-500.0,0.00019289,2]
[350691479,1738062660067,-938.22,0.00019289,2]
[350691480,1738062660076,-1000.0,0.00019289,2]
[350691481,1738062660085,-524.09819057,0.00019289,2]
[350691482,1738062660094,-500.0,0.00019289,2]
[350691483,1738062660103,-500.0,0.00019289,2]
[350691484,1738062660111,-1077.83,0.00019289,2]
[350691485,1738062660120,-213.80531747,0.00019289,2]
[350691486,1738062660129,-622.97,0.00019289,2]
[350691487,1738062660137,-500.0,0.00019289,2]
[350691488,1738062660146,-247.29765517,0.00019289,2]
[350691489,1738062660155,-1121.35,0.00019289,2]
[350691490,1738062660164,-2218.3,0.00019289,2]
[350691491,1738062660173,-500.0,0.00019289,2]
[350691492,1738062660182,-2122.62,0.00019289,2]
[350691493,1738062660191,-500.0,0.00019289,2]
[350691494,1738062660199,-500.0,0.00019289,2]
[350691495,1738062660208,-598.14,0.00019289,2]
[350691496,1738062660217,-500.0,0.00019289,2]
[350691497,1738062660225,-597.37,0.00019289,2]
[350691498,1738062660235,-500.0,0.00019289,2]
[350691499,1738062660244,-416.28534599,0.00019289,2]
[350691500,1738062660261,-83.71465401,0.00019289,2]
[350691501,1738062660271,-500.0,0.00019289,2]
[350691502,1738062660279,-500.0,0.00019289,2]
[350691503,1738062660288,-500.0,0.00019289,2]
[350691504,1738062660297,-500.0,0.00019289,2]
[350691505,1738062660306,-500.0,0.00019289,2]
[350691506,1738062660315,-2012.53,0.00019289,2]
[350691507,1738062660324,-509.70879991,0.00019289,2]
[350691508,1738062660333,-1505.46,0.00019289,2]
[350691509,1738062660343,-500.0,0.00019289,2]
[350691510,1738062660352,-668.28,0.00019289,2]
[350691511,1738062660365,-871.0,0.00019289,2]
[350691512,1738062660375,-1130.4,0.00019289,2]
[350691513,1738062660384,-500.0,0.00019289,2]
[350691514,1738062660394,-500.0,0.00019289,2]
[350691515,1738062660403,-500.0,0.00019289,2]
[350691516,1738062660412,-500.0,0.00019289,2]
[350691517,1738062660422,-581.41,0.00019289,2]
[350691518,1738062660432,-500.0,0.00019289,2]
[350691519,1738062660441,-1429.69,0.00019289,2]
[350691520,1738062660450,-500.0,0.00019289,2]
[350691521,1738062660459,-500.0,0.00019289,2]
[350691522,1738062660468,-1492.49,0.00019289,2]
[350691523,1738062660477,-787.69,0.00019289,2]
[350691524,1738062660487,-500.0,0.00019289,2]
[350691525,1738062660496,-500.0,0.00019289,2]
[350691526,1738062660505,-514.87407539,0.00019289,2]
[350691527,1738062660514,-1165.43,0.00019289,2]
[350691528,1738062660524,-500.0,0.00019289,2]
[350691529,1738062660533,-500.0,0.00019289,2]
[350691530,1738062660541,-500.0,0.00019289,2]
[350691531,1738062660551,-624.14,0.00019289,2]
[350691532,1738062660561,-1259.62,0.00019289,2]
[350691533,1738062660569,-500.0,0.00019289,2]
[350691534,1738062660578,-500.0,0.00019289,2]
[350691535,1738062660587,-814.94,0.00019289,2]
[350691536,1738062660596,-610.02257969,0.00019289,2]
[350691537,1738062660605,-500.0,0.00019289,2]
[350691538,1738062660614,-466.099891,0.00019289,2]
[350691539,1738062660625,-33.900109,0.00019289,2]
[350691540,1738062660635,-894.35,0.00019289,2]
[350691541,1738062660644,-549.33,0.00019289,2]
[350691542,1738062660653,-500.0,0.00019289,2]
[350691543,1738062660662,-612.52,0.00019289,2]
[350691544,1738062660671,-500.0,0.00019289,2]
[350691545,1738062660814,-1085.9,0.00019289,2]
[350691546,1738062660823,-921.96,0.00019289,2]
[350691547,1738062660832,-668.42,0.00019289,2]
[350691548,1738062660842,-592.08,0.00019289,2]
[350691549,1738062660851,-636.19,0.00019289,2]
[350691550,1738062660860,-500.0,0.00019289,2]
[350691551,1738062660870,-500.0,0.00019289,2]
[350691552,1738062660880,-500.0,0.00019289,2]
[350691553,1738062660889,-166.83,0.00019289,2]
[350691554,1738062660898,-1115.0,0.0001929,2]
[350691555,1738062660906,-500.0,0.0001929,2]
[350691556,1738062660915,-101.11068156,0.0001929,2]
[350691557,1738062660953,-398.88931844,0.0001929,2]
[350691558,1738062660962,-500.0,0.0001929,2]
[350691559,1738062660971,-500.0,0.0001929,2]
[350691560,1738062660981,-242.31068155,0.0001929,2]
[350691561,1738062660992,-291.09990542,0.0001929,2]
[350691562,1738062661001,-454.98626642,0.0001929,2]
[350691563,1738062661010,-787.94,0.0001929,2]
[350691564,1738062661019,-386.86739749,0.0001929,2]
[350691565,1738062661034,-328.86805204,0.00019194,2]
[350691566,1738062661045,-171.13194796,0.00019194,2]
[350691567,1738062661054,-243.43260251,0.0001929,2]
[350691568,1738062661062,-500.0,0.0001929,2]
[350691569,1738062661071,-500.0,0.0001929,2]
[350691570,1738062661080,-500.0,0.0001929,2]
[350691571,1738062661088,-500.0,0.0001929,2]
[350691572,1738062661097,-500.0,0.0001929,2]
[350691573,1738062661106,-500.0,0.0001929,2]
[350691574,1738062661115,-500.0,0.0001929,2]
[350691575,1738062661123,-500.0,0.0001929,2]
[350691576,1738062661133,-145.12475453,0.0001929,2]
[350691577,1738062661371,-500.0,0.00018785,2]
[350691578,1738062661380,-34.029275,0.00018994,2]
[350691579,1738062661392,-422.7577225,0.00018994,2]
[350691580,1738062661404,-43.2130025,0.00018994,2]
[350691581,1738062661414,-500.0,0.00019194,2]
[350691582,1738062661423,-161.8389975,0.00019272,2]
[350691583,1738062661436,-338.1610025,0.00019272,2]
[350691584,1738062661445,-147.4348709,0.00019289,2]
[350691585,1738062661456,-352.5651291,0.00019289,2]
[350691586,1738062661465,-104.4392509,0.0001929,2]
[350691587,1738062661477,-250.43599457,0.0001929,2]
[350691588,1738062661486,-300.97400443,0.0001929,2]
[350691589,1738062661498,-315.90599557,0.0001929,2]
[350691590,1738062661507,-118.49400443,0.0001929,2]
[350691591,1738062661519,-381.50599557,0.0001929,2]
[350691592,1738062661529,-36.27800441,0.0001929,2]
[350691593,1738062661540,-463.72199559,0.0001929,2]
[350691594,1738062661550,-5.23800441,0.0001929,2]
[350691595,1738062661561,-557.085015,0.0001929,2]
[350691596,1738062661572,-243.86698059,0.0001929,2]
[350691597,1738062661582,-500.0,0.0001929,2]
[350691598,1738062661591,-256.13301941,0.0001929,2]
[350691599,1738062661603,-243.86698059,0.0001929,2]
[350691600,1738062661611,-358.73889372,0.0001929,2]
[350691601,1738062661621,-500.0,0.0001929,2]
[350691602,1738062661630,-500.0,0.0001929,2]
[350691603,1738062661640,-601.27,0.0001929,2]
[350691604,1738062661649,-500.0,0.0001929,2]
[350691605,1738062661660,-500.0,0.0001929,2]
[350691606,1738062661670,-500.0,0.0001929,2]
[350691607,1738062661680,-500.0,0.0001929,2]
[350691608,1738062661689,-500.0,0.0001929,2]
[350691609,1738062661698,-551.72234578,0.0001929,2]
[350691610,1738062661708,-524.17835608,0.0001929,2]
[350691611,1738062661719,-500.0,0.0001929,2]
[350691612,1738062661728,-500.0,0.0001929,2]
[350691613,1738062661738,-500.0,0.0001929,2]
[350691614,1738062661747,-500.0,0.0001929,2]
[350691615,1738062661757,-790.0,0.0001929,2]
[350691616,1738062661767,-500.0,0.0001929,2]
[350691617,1738062661777,-535.44,0.0001929,2]
[350691618,1738062661787,-500.0,0.0001929,2]
[350691619,1738062661796,-616.58,0.0001929,2]
[350691620,1738062661805,-500.0,0.0001929,2]
[350691621,1738062661814,-500.0,0.0001929,2]
[350691622,1738062661829,-640.93,0.0001929,2]
[350691623,1738062661846,-500.0,0.0001929,2]
[350691624,1738062661860,-500.0,0.0001929,2]
[350691625,1738062661876,-500.0,0.0001929,2]
[350691626,1738062661894,-527.851572,0.0001929,2]
[350691627,1738062661910,-161.17799391,0.0001929,2]
[350691628,1738062661922,-500.0,0.0001929,2]
[350691629,1738062661937,-500.0,0.0001929,2]
[350691630,1738062661953,-500.0,0.0001929,2]
[350691631,1738062661970,-910.7,0.0001929,2]
[350691632,1738062661986,-500.0,0.0001929,2]
[350691633,1738062662003,-500.0,0.0001929,2]
[350691634,1738062662018,-818.19,0.0001929,2]
[350691635,1738062662033,-500.0,0.0001929,2]
[350691636,1738062662050,-811.25,0.0001929,2]
[350691637,1738062662064,-500.0,0.0001929,2]
[350691638,1738062662076,-535.5027028,0.0001929,2]
[350691639,1738062662092,-500.0,0.0001929,2]
[350691640,1738062662105,-514.57000387,0.0001929,2]
[350691641,1738062662117,-500.0,0.0001929,2]
[350691642,1738062662133,-500.0,0.0001929,2]
[350691643,1738062662145,-500.0,0.0001929,2]
[350691644,1738062662157,-500.0,0.0001929,2]
[350691645,1738062662173,-816.76,0.0001929,2]
[350691646,1738062662187,-517.58,0.0001929,2]
[350691647,1738062662200,-565.03,0.0001929,2]
[350691648,1738062662213,-625.84,0.0001929,2]
[350691649,1738062662227,-533.37189836,0.0001929,2]
[350691650,1738062662240,-500.0,0.0001929,2]
[350691651,1738062662253,-500.0,0.0001929,2]
[350691652,1738062662267,-650.62,0.0001929,2]
[350691653,1738062662280,-500.0,0.0001929,2]
[350691654,1738062662294,-933.59,0.0001929,2]
[350691655,1738062662307,-500.0,0.0001929,2]
[350691656,1738062662321,-500.0,0.0001929,2]
[350691657,1738062662334,-500.0,0.0001929,2]
[350691658,1738062662348,-500.0,0.0001929,2]
[350691659,1738062662365,-500.0,0.0001929,2]
[350691660,1738062662378,-500.0,0.0001929,2]
[350691661,1738062662391,-500.0,0.0001929,2]
[350691662,1738062662404,-500.0,0.0001929,2]
[350691663,1738062662417,-764.69,0.0001929,2]
[350691664,1738062662431,-516.39356635,0.0001929,2]
[350691665,1738062662444,-500.0,0.0001929,2]
[350691666,1738062662457,-500.0,0.0001929,2]
[350691667,1738062662470,-500.0,0.0001929,2]
[350691668,1738062662483,-500.0,0.0001929,2]
[350691669,1738062662496,-500.0,0.0001929,2]
[350691670,1738062662509,-500.0,0.0001929,2]
[350691671,1738062662522,-500.0,0.0001929,2]
[350691672,1738062662535,-500.0,0.0001929,2]
[350691673,1738062662549,-500.0,0.0001929,2]
[350691674,1738062662561,-500.0,0.0001929,2]
[350691675,1738062662577,-500.0,0.0001929,2]
[350691676,1738062662589,-500.0,0.0001929,2]
[350691677,1738062662602,-580.99,0.0001929,2]
[350691678,1738062662615,-500.0,0.0001929,2]
[350691679,1738062662628,-500.0,0.0001929,2]
[350691680,1738062662645,-500.0,0.0001929,2]
[350691681,1738062662657,-500.0,0.0001929,2]
[350691682,1738062662671,-500.0,0.0001929,2]
[350691683,1738062662686,-500.0,0.0001929,2]
[350691684,1738062662699,-531.86134531,0.0001929,2]
[350691685,1738062662713,-500.0,0.0001929,2]
[350691686,1738062662726,-575.25,0.0001929,2]
[350691687,1738062662738,-500.0,0.0001929,2]
[350691688,1738062662752,-537.26,0.0001929,2]
[350691689,1738062662764,-1350.66,0.0001929,2]
[350691690,1738062662777,-539.20132262,0.0001929,2]
[350691691,1738062662790,-500.0,0.0001929,2]
[350691692,1738062662804,-500.0,0.0001929,2]
[350691693,1738062662818,-500.0,0.0001929,2]
[350691694,1738062662832,-500.0,0.0001929,2]
[350691695,1738062662843,-500.0,0.0001929,2]
[350691696,1738062662853,-500.0,0.0001929,2]
[350691697,1738062662863,-500.0,0.0001929,2]
[350691698,1738062662872,-500.0,0.0001929,2]
[350691699,1738062662885,-500.0,0.0001929,2]
[350691700,1738062662895,-500.0,0.0001929,2]
[350691701,1738062662905,-500.0,0.0001929,2]
[350691702,1738062662915,-500.0,0.0001929,2]
[350691703,1738062662925,-500.0,0.0001929,2]
[350691704,1738062662934,-500.0,0.0001929,2]
[350691705,1738062662945,-500.0,0.0001929,2]
[350691706,1738062662955,-500.0,0.0001929,2]
[350691707,1738062662964,-500.0,0.0001929,2]
[350691708,1738062662973,-500.0,0.0001929,2]
[350691709,1738062662983,-510.07730834,0.0001929,2]
[350691710,1738062662992,-500.0,0.0001929,2]
[350691711,1738062663003,-618.84,0.0001929,2]
[350691712,1738062663013,-500.0,0.0001929,2]
[350691713,1738062663022,-500.0,0.0001929,2]
[350691714,1738062663032,-500.0,0.0001929,2]
[350691715,1738062663042,-520.7,0.0001929,2]
[350691716,1738062663052,-500.0,0.0001929,2]
[350691717,1738062663062,-500.0,0.0001929,2]
[350691718,1738062663072,-507.23,0.0001929,2]
[350691719,1738062663082,-1013.47,0.0001929,2]
[350691720,1738062663092,-683.25,0.0001929,2]
[350691721,1738062663101,-500.0,0.0001929,2]
[350691722,1738062663111,-869.34,0.0001929,2]
[350691723,1738062663121,-513.83146023,0.0001929,2]
[350691724,1738062663132,-500.0,0.0001929,2]
[350691725,1738062663143,-688.54,0.0001929,2]
[350691726,1738062663153,-2939.23,0.0001929,2]
[350691727,1738062663163,-500.0,0.0001929,2]
[350691728,1738062663173,-500.0,0.0001929,2]
[350691729,1738062663182,-500.0,0.0001929,2]
[350691730,1738062663192,-674.99,0.0001929,2]
[350691731,1738062663203,-500.0,0.0001929,2]
[350691732,1738062663213,-500.0,0.0001929,2]
[350691733,1738062663223,-500.0,0.0001929,2]
[350691734,1738062663233,-657.13,0.0001929,2]
[350691735,1738062663244,-500.0,0.0001929,2]
[350691736,1738062663594,-500.0,0.0001929,2]
[350691737,1738062663618,-500.0,0.0001929,2]
[350691738,1738062663642,-500.0,0.0001929,2]
[350691739,1738062663655,-500.0,0.0001929,2]
[350691740,1738062663665,-716.23,0.0001929,2]
[350691741,1738062663676,-500.0,0.0001929,2]
[350691742,1738062663685,-1385.3,0.0001929,2]
[350691743,1738062663695,-500.0,0.0001929,2]
[350691744,1738062663705,-549.72,0.0001929,2]
[350691745,1738062663715,-1125.31,0.0001929,2]
[350691746,1738062663725,-1054.54,0.0001929,2]
[350691747,1738062663735,-905.22,0.0001929,2]
[350691748,1738062663746,-511.22294869,0.0001929,2]
[350691749,1738062663757,-4862.1,0.0001929,2]
[350691750,1738062663767,-675.39,0.0001929,2]
[350691751,1738062663779,-39049.29014979,0.0001929,6]
[350691752,1738062663791,-500.0,0.00019291,2]
[350691753,1738062663800,-500.0,0.00019291,2]
[350691754,1738062663811,-500.0,0.00019291,2]
[350691755,1738062663821,-500.0,0.00019291,2]
[350691756,1738062663831,-602.29,0.00019291,2]
[350691757,1738062663841,-500.0,0.00019291,2]
[350691758,1738062663850,-500.0,0.00019291,2]
[350691759,1738062663860,-500.0,0.00019291,2]
[350691760,1738062663871,-556.96283835,0.00019291,2]
[350691761,1738062663882,-500.0,0.00019291,2]
[350691762,1738062663893,-500.0,0.00019291,2]
[350691763,1738062663902,-500.0,0.00019291,2]
[350691764,1738062663912,-500.0,0.00019291,2]
[350691765,1738062663923,-551.07,0.00019291,2]
[350691766,1738062663933,-507.4,0.00019291,2]
[350691767,1738062663943,-500.0,0.00019291,2]
[350691768,1738062663953,-616.68,0.00019291,2]
[350691769,1738062663964,-500.0,0.00019291,2]
[350691770,1738062663973,-500.0,0.00019291,2]
[350691771,1738062663984,-518.09,0.00019291,2]
[350691772,1738062663994,-500.0,0.00019291,2]
[350691773,1738062664004,-500.0,0.00019291,2]
[350691774,1738062664014,-500.0,0.00019291,2]
[350691775,1738062664024,-500.0,0.00019291,2]
[350691776,1738062664033,-510.63120144,0.00019291,2]
[350691777,1738062664043,-500.0,0.00019291,2]
[350691778,1738062664053,-500.0,0.00019291,2]
[350691779,1738062664062,-500.98,0.00019291,2]
[350691780,1738062664071,-500.0,0.00019291,2]
[350691781,1738062664080,-737.09,0.00019291,2]
[350691782,1738062664089,-1063.85,0.00019291,2]
[350691783,1738062664099,-521.5,0.00019291,2]
[350691784,1738062664108,-500.0,0.00019291,2]
[350691785,1738062664117,-500.0,0.00019291,2]
[350691786,1738062664127,-820.06,0.00019291,2]
[350691787,1738062664139,-500.0,0.00019291,2]
[350691788,1738062664148,-500.0,0.00019291,2]
[350691789,1738062664158,-1179.65,0.00019291,2]
[350691790,1738062664167,-500.0,0.00019291,2]
[350691791,1738062664177,-500.0,0.00019291,2]
[350691792,1738062664186,-646.29,0.00019291,2]
[350691793,1738062664196,-500.0,0.00019291,2]
[350691794,1738062664206,-500.0,0.00019291,2]
[350691795,1738062664216,-500.0,0.00019291,2]
[350691796,1738062664225,-1411.75,0.00019291,2]
[350691797,1738062664235,-631.38,0.00019291,2]
[350691798,1738062664245,-500.0,0.00019291,2]
[350691799,1738062664256,-500.0,0.00019291,2]
[350691800,1738062664266,-500.0,0.00019291,2]
[350691801,1738062664276,-1413.74,0.00019291,2]
[350691802,1738062664285,-500.0,0.00019291,2]
[350691803,1738062664295,-500.0,0.00019291,2]
[350691804,1738062664305,-500.0,0.00019291,2]
[350691805,1738062664315,-500.0,0.00019291,2]
[350691806,1738062664326,-297.10914053,0.00019291,2]
[350691807,1738062664336,-500.0,0.00019291,2]
[350691808,1738062664346,-500.0,0.00019291,2]
[350691809,1738062664358,-500.0,0.00019291,2]
[350691810,1738062664367,-563.99,0.00019291,2]
[350691811,1738062664377,-500.0,0.00019291,2]
[350691812,1738062664388,-632.86,0.00019291,2]
[350691813,1738062664399,-1270.9,0.00019291,2]
[350691814,1738062664408,-516.85,0.00019291,2]
[350691815,1738062664418,-604.22379412,0.00019291,2]
[350691816,1738062664427,-818.18,0.00019291,2]
[350691817,1738062664439,-856.76,0.00019291,2]
[350691818,1738062664448,-500.0,0.00019291,2]
[350691819,1738062664457,-500.0,0.00019291,2]
[350691820,1738062664467,-500.0,0.00019291,2]
[350691821,1738062664476,-500.0,0.00019291,2]
[350691822,1738062664485,-221.1779209,0.00019291,2]
[350691823,1738062664494,-500.0,0.00019291,2]
[350691824,1738062664504,-773.26,0.00019291,2]
[350691825,1738062664513,-500.0,0.00019291,2]
[350691826,1738062664522,-500.0,0.00019291,2]
[350691827,1738062664531,-638.62,0.00019291,2]
[350691828,1738062664540,-982.92,0.00019291,2]
[350691829,1738062664549,-500.0,0.00019291,2]
[350691830,1738062664558,-500.0,0.00019291,2]
[350691831,1738062664567,-541.15186284,0.00019291,2]
[350691832,1738062664576,-500.0,0.00019291,2]
[350691833,1738062664585,-714.89,0.00019291,2]
[350691834,1738062664594,-500.0,0.00019291,2]
[350691835,1738062664603,-500.0,0.00019291,2]
[350691836,1738062664613,-500.0,0.00019291,2]
[350691837,1738062664622,-1149.1,0.00019291,2]
[350691838,1738062664631,-500.0,0.00019291,2]
[350691839,1738062664641,-500.0,0.00019291,2]
[350691840,1738062664651,-927.89,0.00019291,2]
[350691841,1738062664660,-603.84,0.00019291,2]
[350691842,1738062664669,-500.0,0.00019291,2]
[350691843,1738062664679,-499.79833519,0.00019291,2]
[350691844,1738062664688,-586.91,0.00019291,2]
[350691845,1738062664698,-500.0,0.00019291,2]